fUST/lending_fUST_20250927
["ID","MTS","AMOUNT","RATE_DAILY","PERIOD"]
[388015320,1758965446546,-806.44,0.0003589,9]
[388015321,1758965446556,-480.0,0.0003589,9]
[388015322,1758965446565,-480.0,0.0003589,9]
[388015323,1758965446574,-1018.09,0.0003589,9]
[388015324,1758965446586,-1197.51,0.0003589,9]
[388015325,1758965446595,-1571.98,0.0003589,9]
[388015326,1758965446605,-3766.13,0.0003589,9]
[388015327,1758965446614,-11819.47,0.0003589,9]
[388015328,1758965446624,-480.0,0.0003589,9]
[388015329,1758965446633,-3081.99,0.0003589,9]
[388015330,1758965446643,-480.0,0.0003589,9]
[388015331,1758965446652,-926.52,0.0003589,9]
[388015332,1758965446661,-480.0,0.0003589,9]
[388015333,1758965446670,-480.0,0.0003589,9]
[388015334,1758965446679,-480.0,0.0003589,9]
[388015335,1758965446688,-842.78,0.0003589,9]
[388015336,1758965446698,-489.42902888,0.0003589,9]
[388015337,1758965446707,-480.0,0.0003589,9]
[388015338,1758965446717,-928.76,0.0003589,9]
[388015339,1758965446726,-480.0,0.0003589,9]
[388015340,1758965446739,-3295.26,0.0003589,9]
[388015341,1758965446749,-580.93,0.0003589,9]
[388015342,1758965446759,-480.0,0.0003589,7]
[388015343,1758965446769,-480.0,0.0003589,9]
[388015344,1758965446779,-1043.77,0.0003589,9]
[388015345,1758965446789,-480.0,0.0003589,9]
[388015346,1758965446799,-3874.75,0.0003589,9]
[388015347,1758965446811,-480.0,0.0003589,9]
[388015348,1758965446820,-1009.91,0.0003589,9]
[388015349,1758965446829,-942.67,0.0003589,9]
[388015350,1758965446840,-513.98459416,0.0003589,9]
[388015351,1758965446850,-501.21,0.0003589,9]
[388015352,1758965446860,-1313.89,0.0003589,9]
[388015353,1758965446870,-480.0,0.0003589,9]
[388015354,1758965446881,-4633.27,0.0003589,9]
[388015355,1758965446893,-3223.0,0.0003589,9]
[388015356,1758965446904,-584.45,0.0003589,9]
[388015357,1758965446913,-1627.27,0.0003589,9]
[388015358,1758965446923,-480.0,0.0003589,9]
[388015359,1758965446932,-1134.83,0.0003589,9]
[388015360,1758965446941,-480.0,0.0003589,9]
[388015361,1758965446950,-21619.91,0.0003589,9]
[388015362,1758965446960,-480.0,0.0003589,9]
[388015363,1758965446969,-5441.71,0.0003589,9]
[388015364,1758965446978,-480.0,0.0003589,9]
[388015365,1758965446987,-480.0,0.0003589,9]
[388015366,1758965446997,-480.0,0.0003589,9]
[388015367,1758965447007,-480.0,0.0003589,9]
[388015368,1758965447016,-480.0,0.0003589,9]
[388015369,1758965447025,-480.0,0.0003589,9]
[388015370,1758965447035,-480.0,0.0003589,9]
[388015371,1758965447045,-480.0,0.0003589,9]
[388015372,1758965447055,-843.43,0.0003589,9]
[388015373,1758965447065,-5508.47,0.0003589,9]
[388015374,1758965447074,-453.19647502,0.0003589,9]
[388015375,1758965447084,-480.0,0.0003589,9]
[388015376,1758965447094,-1220.46,0.0003589,9]
[388015377,1758965447103,-697.3,0.0003589,9]
[388015378,1758965447112,-480.0,0.0003589,9]
[388015379,1758965447122,-542.6,0.0003589,9]
[388015380,1758965447131,-5350.41,0.0003589,9]
[388015381,1758965447140,-480.0,0.0003589,9]
[388015382,1758965447149,-498.04,0.0003589,9]
[388015383,1758965447159,-2528.77,0.0003589,9]
[388015384,1758965447169,-1397.41,0.0003589,9]
[388015385,1758965447178,-480.0,0.0003589,9]
[388015386,1758965447188,-286.793731,0.0003589,9]
[388015387,1758965447197,-6012.15,0.0003589,9]
[388015388,1758965447207,-480.0,0.0003589,9]
[388015389,1758965447217,-518.88,0.0003589,9]
[388015390,1758965447227,-1211.93,0.0003589,9]
[388015391,1758965447236,-480.0,0.0003589,9]
[388015392,1758965447246,-480.0,0.0003589,9]
[388015393,1758965447255,-803.75,0.0003589,9]
[388015394,1758965447265,-2078.22,0.0003589,9]
[388015395,1758965447274,-480.0,0.0003589,2]
[388015396,1758965447283,-1641.68,0.0003589,9]
[388015397,1758965447292,-480.0,0.0003589,9]
[388015398,1758965447302,-856.37,0.0003589,9]
[388015399,1758965447312,-1316.86,0.0003589,9]
[388015400,1758965447321,-480.0,0.0003589,9]
[388015401,1758965447333,-480.0,0.0003589,9]
[388015402,1758965447343,-480.0,0.0003589,9]
[388015403,1758965447353,-1543.55,0.0003589,9]
[388015404,1758965447363,-480.0,0.0003589,9]
[388015405,1758965447373,-480.0,0.0003589,9]
[388015406,1758965447383,-480.0,0.0003589,9]
[388015407,1758965447392,-3123.63,0.0003589,9]
[388015408,1758965447401,-480.0,0.0003589,9]
[388015409,1758965447411,-11258.56,0.0003589,9]
[388015410,1758965447421,-480.0,0.0003589,9]
[388015411,1758965447430,-480.0,0.0003589,9]
[388015412,1758965447441,-712.46,0.0003589,9]
[388015413,1758965447450,-732.34,0.0003589,9]
[388015414,1758965447459,-568.64,0.0003589,9]
[388015415,1758965447468,-2108.14,0.0003589,9]
[388015416,1758965447477,-480.0,0.0003589,9]
[388015417,1758965447487,-6087.94,0.0003589,9]
[388015418,1758965447496,-1746.09,0.0003589,9]
[388015419,1758965447505,-8187.01,0.0003589,9]
[388015420,1758965447514,-2297.1,0.0003589,9]
[388015421,1758965447523,-480.0,0.0003589,9]
[388015422,1758965447532,-485.05698644,0.0003589,9]
[388015423,1758965447541,-480.0,0.0003589,9]
[388015424,1758965447551,-621.54,0.0003589,9]
[388015425,1758965447560,-2086.48,0.0003589,9]
[388015426,1758965447569,-602.0,0.0003589,9]
[388015427,1758965447578,-683.86,0.0003589,9]
[388015428,1758965447589,-480.0,0.0003589,9]
[388015429,1758965447599,-5953.82,0.0003589,9]
[388015430,1758965447608,-5300.22,0.0003589,9]
[388015431,1758965447618,-2958.79,0.0003589,9]
[388015432,1758965447627,-480.0,0.0003589,9]
[388015433,1758965447636,-480.0,0.0003589,9]
[388015434,1758965447646,-480.0,0.0003589,9]
[388015435,1758965447655,-1432.8,0.0003589,9]
[388015436,1758965447665,-1182.75,0.0003589,9]
[388015437,1758965447674,-1660.81,0.0003589,9]
[388015438,1758965447682,-3277.19,0.0003589,9]
[388015439,1758965447691,-480.0,0.0003589,9]
[388015440,1758965447700,-2989.0,0.0003589,9]
[388015441,1758965447710,-2089.79,0.0003589,9]
[388015442,1758965447719,-480.0,0.0003589,9]
[388015443,1758965447728,-480.0,0.0003589,9]
[388015444,1758965447742,-480.0,0.0003589,9]
[388015445,1758965447751,-3523.57,0.0003589,9]
[388015446,1758965447760,-3121.27,0.0003589,9]
[388015447,1758965447770,-480.0,0.0003589,9]
[388015448,1758965447780,-174.111744,0.0003589,30]
[388015449,1758965447789,-151.0,0.0003589,2]
[388015450,1758965447798,-480.0,0.0003589,9]
[388015451,1758965447810,-480.0,0.0003589,9]
[388015452,1758965447819,-1508.49,0.0003589,9]
[388015453,1758965447828,-7154.49,0.0003589,9]
[388015454,1758965447839,-174.111744,0.0003589,30]
[388015455,1758965447848,-174.111744,0.0003589,30]
[388015456,1758965447858,-151.0,0.0003589,30]
[388015457,1758965447867,-480.0,0.0003589,9]
[388015458,1758965447877,-174.111744,0.0003589,30]
[388015459,1758965447886,-480.0,0.0003589,9]
[388015460,1758965447895,-1323.11,0.0003589,9]
[388015461,1758965447904,-480.0,0.0003589,9]
[388015462,1758965447913,-151.0,0.0003589,30]
[388015463,1758965447923,-480.0,0.0003589,9]
[388015464,1758965447932,-151.0,0.0003589,30]
[388015465,1758965447942,-480.0,0.0003589,9]
[388015466,1758965447951,-1494.64,0.0003589,9]
[388015467,1758965447960,-480.0,0.0003589,9]
[388015468,1758965447969,-480.0,0.0003589,9]
[388015469,1758965447979,-151.0,0.0003589,30]
[388015470,1758965447989,-480.0,0.0003589,9]
[388015471,1758965447998,-2751.74,0.0003589,9]
[388015472,1758965448007,-480.0,0.0003589,9]
[388015473,1758965448017,-480.0,0.0003589,9]
[388015474,1758965448026,-644.56,0.0003589,9]
[388015475,1758965448037,-480.0,0.0003589,9]
[388015476,1758965448046,-480.0,0.0003589,9]
[388015477,1758965448056,-1430.73,0.0003589,9]
[388015478,1758965448066,-10000.0,0.0003589,30]
[388015479,1758965448075,-480.0,0.0003589,9]
[388015480,1758965448084,-10000.0,0.0003589,30]
[388015481,1758965448094,-223.518126,0.0003589,30]
[388015482,1758965448103,-10000.0,0.0003589,30]
[388015483,1758965448112,-480.0,0.0003589,7]
[388015484,1758965448122,-457.132483,0.0003589,30]
[388015485,1758965448131,-3310.18,0.0003589,9]
[388015486,1758965448140,-223.518126,0.0003589,30]
[388015487,1758965448150,-10000.0,0.0003589,30]
[388015488,1758965448159,-1239.55,0.0003589,9]
[388015489,1758965448168,-457.132483,0.0003589,30]
[388015490,1758965448177,-223.518126,0.0003589,30]
[388015491,1758965448187,-480.0,0.0003589,9]
[388015492,1758965448196,-10000.0,0.0003589,30]
[388015493,1758965448205,-480.0,0.0003589,9]
[388015494,1758965448214,-480.0,0.0003589,9]
[388015495,1758965448223,-457.132483,0.0003589,30]
[388015496,1758965448232,-223.518126,0.0003589,30]
[388015497,1758965448242,-480.0,0.0003589,9]
[388015498,1758965448251,-10000.0,0.0003589,30]
[388015499,1758965448260,-457.132483,0.0003589,30]
[388015500,1758965448269,-10000.0,0.0003589,30]
[388015501,1758965448406,-1167.67,0.0003589,9]
[388015502,1758965448416,-480.0,0.0003589,9]
[388015503,1758965448425,-2529.23,0.0003589,9]
[388015504,1758965448434,-10000.0,0.0003589,30]
[388015505,1758965448444,-480.0,0.0003589,9]
[388015506,1758965448453,-10000.0,0.0003589,30]
[388015507,1758965448462,-714.37,0.0003589,9]
[388015508,1758965448472,-480.0,0.0003589,9]
[388015509,1758965448482,-480.0,0.0003589,9]
[388015510,1758965448491,-10000.0,0.0003589,30]
[388015511,1758965448500,-480.0,0.0003589,9]
[388015512,1758965448511,-1035.27,0.0003589,9]
[388015513,1758965448521,-480.0,0.0003589,9]
[388015514,1758965448531,-480.0,0.0003589,9]
[388015515,1758965448541,-480.0,0.0003589,9]
[388015516,1758965448550,-480.0,0.0003589,9]
[388015517,1758965448559,-480.0,0.0003589,9]
[388015518,1758965448569,-482.62533504,0.0003589,9]
[388015519,1758965448578,-480.0,0.0003589,9]
[388015520,1758965448589,-151.0,0.0003589,30]
[388015521,1758965448598,-3811.06,0.0003589,9]
[388015522,1758965448608,-480.87122977,0.0003589,9]
[388015523,1758965448618,-151.0,0.0003589,30]
[388015524,1758965448627,-3093.5,0.0003589,9]
[388015525,1758965448637,-480.0,0.0003589,9]
[388015526,1758965448646,-1119.8,0.0003589,9]
[388015527,1758965448655,-480.0,0.0003589,9]
[388015528,1758965448664,-480.0,0.0003589,9]
[388015529,1758965448674,-2207.8,0.0003589,9]
[388015530,1758965448683,-480.0,0.0003589,9]
[388015531,1758965448693,-1235.411703,0.0003589,30]
[388015532,1758965448702,-480.0,0.0003589,9]
[388015533,1758965448712,-1235.411703,0.0003589,30]
[388015534,1758965448721,-1005.54,0.0003589,9]
[388015535,1758965448739,-480.0,0.0003589,9]
[388015536,1758965448749,-6806.21,0.0003589,3]
[388015537,1758965448759,-10518.38,0.0003589,9]
[388015538,1758965448769,-1090.43,0.0003589,9]
[388015539,1758965448779,-1235.411703,0.0003589,30]
[388015540,1758965448789,-205.10876,0.0003589,30]
[388015541,1758965448798,-1235.411703,0.0003589,30]
[388015542,1758965448808,-205.10876,0.0003589,30]
[388015543,1758965448817,-480.0,0.0003589,9]
[388015544,1758965448826,-480.0,0.0003589,9]
[388015545,1758965448835,-205.10876,0.0003589,30]
[388015546,1758965448845,-480.0,0.0003589,9]
[388015547,1758965448854,-205.10876,0.0003589,30]
[388015548,1758965448863,-5287.88,0.0003589,9]
[388015549,1758965448872,-480.0,0.0003589,9]
[388015550,1758965448881,-151.0,0.00035906,7]
[388015551,1758965448889,-233.76631357,0.00036,30]
[388015552,1758965448898,-233.76631357,0.00036,7]
[388015553,1758965448907,-1001.71,0.00036164,9]
[388015554,1758965448916,-480.0,0.00036164,9]
[388015555,1758965448925,-497.21,0.00036164,9]
[388015556,1758965448933,-1355.5,0.00036164,9]
[388015557,1758965448942,-718.46,0.00036164,9]
[388015558,1758965448951,-480.0,0.00036164,9]
[388015559,1758965448960,-1559.42,0.00036164,9]
[388015560,1758965448969,-480.0,0.00036164,9]
[388015561,1758965448978,-480.0,0.00036164,9]
[388015562,1758965448987,-485.92192188,0.00036164,9]
[388015563,1758965448996,-480.0,0.00036164,9]
[388015564,1758965449004,-842.28,0.00036164,9]
[388015565,1758965449013,-1496.11,0.00036164,9]
[388015566,1758965449022,-483.56973774,0.00036164,9]
[388015567,1758965449031,-480.0,0.00036164,9]
[388015568,1758965449041,-480.0,0.00036164,9]
[388015569,1758965449050,-480.0,0.00036164,9]
[388015570,1758965449059,-480.0,0.00036164,9]
[388015571,1758965449068,-1203.69,0.00036164,9]
[388015572,1758965449077,-480.0,0.00036164,9]
[388015573,1758965449086,-1447.48,0.00036164,9]
[388015574,1758965449096,-480.0,0.00036164,9]
[388015575,1758965449105,-480.0,0.00036164,9]
[388015576,1758965449114,-480.0,0.00036164,9]
[388015577,1758965449123,-480.0,0.00036164,9]
[388015578,1758965449133,-481.53246385,0.00036164,9]
[388015579,1758965449142,-884.86,0.00036164,9]
[388015580,1758965449151,-480.0,0.00036164,9]
[388015581,1758965449160,-480.0,0.00036164,9]
[388015582,1758965449169,-480.0,0.00036164,9]
[388015583,1758965449178,-480.0,0.00036164,9]
[388015584,1758965449187,-480.0,0.00036164,9]
[388015585,1758965449197,-618.88,0.00036164,9]
[388015586,1758965449206,-480.0,0.00036164,9]
[388015587,1758965449214,-480.0,0.00036164,9]
[388015588,1758965449224,-480.0,0.00036164,9]
[388015589,1758965449233,-530.85,0.00036164,9]
[388015590,1758965449242,-480.0,0.00036164,9]
[388015591,1758965449251,-480.0,0.00036164,9]
[388015592,1758965449260,-4684.08,0.00036164,9]
[388015593,1758965449270,-480.0,0.00036164,9]
[388015594,1758965449279,-480.0,0.00036164,9]
[388015595,1758965449288,-2673.58,0.00036164,9]
[388015596,1758965449298,-783.65,0.00036164,9]
[388015597,1758965449307,-480.0,0.00036164,9]
[388015598,1758965449317,-480.0,0.00036164,9]
[388015599,1758965449326,-499.05,0.00036164,9]
[388015600,1758965449336,-480.0,0.00036164,9]
[388015601,1758965449345,-480.0,0.00036164,9]
[388015602,1758965449355,-480.0,0.00036164,9]
[388015603,1758965449364,-480.0,0.00036164,9]
[388015604,1758965449374,-1987.61,0.00036164,9]
[388015605,1758965449383,-480.0,0.00036164,9]
[388015606,1758965449392,-480.0,0.00036164,9]
[388015607,1758965449401,-480.0,0.00036164,9]
[388015608,1758965449411,-480.0,0.00036164,9]
[388015609,1758965449420,-625.97010585,0.00036164,9]
[388015610,1758965449430,-831.55,0.00036164,9]
[388015611,1758965449439,-480.0,0.00036164,9]
[388015612,1758965449448,-480.0,0.00036164,9]
[388015613,1758965449457,-480.0,0.00036164,9]
[388015614,1758965449467,-480.0,0.00036164,9]
[388015615,1758965449476,-480.0,0.00036164,9]
[388015616,1758965449485,-480.0,0.00036164,9]
[388015617,1758965449495,-480.0,0.00036164,9]
[388015618,1758965449504,-480.0,0.00036164,9]
[388015619,1758965449512,-480.0,0.00036164,9]
[388015620,1758965449520,-480.0,0.00036164,9]
[388015621,1758965449529,-480.0,0.00036164,9]
[388015622,1758965449537,-480.0,0.00036164,9]
[388015623,1758965449547,-480.0,0.00036164,9]
[388015624,1758965449556,-500.0,0.00036164,9]
[388015625,1758965449565,-480.0,0.00036164,9]
[388015626,1758965449574,-480.0,0.00036164,9]
[388015627,1758965449584,-481.12,0.00036164,9]
[388015628,1758965449593,-480.0,0.00036164,9]
[388015629,1758965449602,-480.0,0.00036164,9]
[388015630,1758965449611,-227.63156414,0.00036164,9]
[388015631,1758965449620,-480.0,0.00036164,9]
[388015632,1758965449629,-480.0,0.00036164,9]
[388015633,1758965449638,-480.0,0.00036164,9]
[388015634,1758965449647,-2213.42,0.00036164,9]
[388015635,1758965449656,-524.72,0.00036164,9]
[388015636,1758965449665,-480.0,0.00036164,9]
[388015637,1758965449674,-480.0,0.00036164,9]
[388015638,1758965449683,-480.0,0.00036164,9]
[388015639,1758965449692,-480.0,0.00036164,9]
[388015640,1758965449702,-480.0,0.00036164,9]
[388015641,1758965449710,-480.0,0.00036164,9]
[388015642,1758965449719,-480.0,0.00036164,9]
[388015643,1758965449730,-252.88163633,0.00036164,9]
[388015644,1758965449743,-480.0,0.00036164,9]
[388015645,1758965449753,-480.0,0.00036164,9]
[388015646,1758965449762,-298.54681329,0.00036164,9]
[388015647,1758965449772,-480.0,0.00036164,9]
[388015648,1758965449783,-480.0,0.00036164,9]
[388015649,1758965449793,-480.0,0.00036164,9]
[388015650,1758965449804,-480.0,0.00036164,9]
[388015651,1758965449815,-480.0,0.00036164,9]
[388015652,1758965449825,-480.0,0.00036164,9]
[388015653,1758965449835,-1547.23,0.00036164,9]
[388015654,1758965449844,-2056.39,0.00036164,9]
[388015655,1758965449854,-665.62,0.00036164,9]
[388015656,1758965449863,-480.0,0.00036164,9]
[388015657,1758965449873,-480.0,0.00036164,9]
[388015658,1758965449883,-11559.39,0.00036164,9]
[388015659,1758965449892,-590.62,0.00036164,9]
[388015660,1758965449901,-480.0,0.00036164,9]
[388015661,1758965449910,-480.0,0.00036164,9]
[388015662,1758965449919,-564.21,0.00036164,9]
[388015663,1758965449928,-480.0,0.00036164,9]
[388015664,1758965449938,-4719.48,0.00036164,9]
[388015665,1758965449947,-639.4,0.00036164,9]
[388015666,1758965449956,-1096.73,0.00036164,9]
[388015667,1758965449965,-480.0,0.00036164,9]
[388015668,1758965449975,-806.44,0.00036164,9]
[388015669,1758965449984,-480.0,0.00036164,9]
[388015670,1758965449993,-480.0,0.00036164,9]
[388015671,1758965450003,-1018.09,0.00036164,9]
[388015672,1758965450012,-1197.51,0.00036164,9]
[388015673,1758965450022,-1571.98,0.00036164,9]
[388015674,1758965450032,-3766.13,0.00036164,9]
[388015675,1758965450042,-11819.47,0.00036164,9]
[388015676,1758965450052,-3081.99,0.00036164,9]
[388015677,1758965450062,-480.0,0.00036164,9]
[388015678,1758965450071,-480.0,0.00036164,9]
[388015679,1758965450080,-926.52,0.00036164,9]
[388015680,1758965450090,-480.0,0.00036164,9]
[388015681,1758965450100,-480.0,0.00036164,9]
[388015682,1758965450109,-480.0,0.00036164,9]
[388015683,1758965450119,-842.78,0.00036164,9]
[388015684,1758965450129,-480.0,0.00036164,9]
[388015685,1758965450139,-928.76,0.00036164,9]
[388015686,1758965450148,-480.0,0.00036164,9]
[388015687,1758965450157,-3295.26,0.00036164,9]
[388015688,1758965450166,-580.93,0.00036164,9]
[388015689,1758965450175,-480.0,0.00036164,7]
[388015690,1758965450184,-480.0,0.00036164,9]
[388015691,1758965450194,-1043.77,0.00036164,9]
[388015692,1758965450205,-480.0,0.00036164,9]
[388015693,1758965450215,-3874.75,0.00036164,9]
[388015694,1758965450224,-480.0,0.00036164,9]
[388015695,1758965450233,-1009.91,0.00036164,9]
[388015696,1758965450243,-942.67,0.00036164,9]
[388015697,1758965450253,-501.21,0.00036164,9]
[388015698,1758965450262,-1313.89,0.00036164,9]
[388015699,1758965450271,-480.0,0.00036164,9]
[388015700,1758965450281,-4633.27,0.00036164,9]
[388015701,1758965450291,-3223.0,0.00036164,9]
[388015702,1758965450300,-584.45,0.00036164,9]
[388015703,1758965450310,-1627.27,0.00036164,9]
[388015704,1758965450319,-480.0,0.00036164,9]
[388015705,1758965450328,-1134.83,0.00036164,9]
[388015706,1758965450338,-480.0,0.00036164,9]
[388015707,1758965450348,-480.0,0.00036164,9]
[388015708,1758965450357,-21619.91,0.00036164,9]
[388015709,1758965450367,-5441.71,0.00036164,9]
[388015710,1758965450376,-480.0,0.00036164,9]
[388015711,1758965450385,-480.0,0.00036164,9]
[388015712,1758965450395,-480.0,0.00036164,9]
[388015713,1758965450404,-480.0,0.00036164,9]
[388015714,1758965450413,-480.0,0.00036164,9]
[388015715,1758965450422,-480.0,0.00036164,9]
[388015716,1758965450431,-480.0,0.00036164,9]
[388015717,1758965450441,-480.0,0.00036164,9]
[388015718,1758965450450,-843.43,0.00036164,9]
[388015719,1758965450459,-5508.47,0.00036164,9]
[388015720,1758965450469,-480.0,0.00036164,9]
[388015721,1758965450597,-1220.46,0.00036164,9]
[388015722,1758965450607,-697.3,0.00036164,9]
[388015723,1758965450617,-480.0,0.00036164,9]
[388015724,1758965450626,-542.6,0.00036164,9]
[388015725,1758965450635,-5350.41,0.00036164,9]
[388015726,1758965450646,-480.0,0.00036164,9]
[388015727,1758965450655,-498.04,0.00036164,9]
[388015728,1758965450664,-2528.77,0.00036164,9]
[388015729,1758965450674,-1397.41,0.00036164,9]
[388015730,1758965450683,-480.0,0.00036164,9]
[388015731,1758965450692,-6012.15,0.00036164,9]
[388015732,1758965450701,-480.0,0.00036164,9]
[388015733,1758965450712,-518.88,0.00036164,9]
[388015734,1758965450722,-1211.93,0.00036164,9]
[388015735,1758965450734,-548.54468897,0.00036164,9]
[388015736,1758965450744,-480.0,0.00036164,9]
[388015737,1758965450754,-803.75,0.00036164,9]
[388015738,1758965450764,-2078.22,0.00036164,9]
[388015739,1758965450775,-480.0,0.00036164,2]
[388015740,1758965450784,-1641.68,0.00036164,9]
[388015741,1758965450793,-480.0,0.00036164,9]
[388015742,1758965450803,-856.37,0.00036164,9]
[388015743,1758965450815,-1316.86,0.00036164,9]
[388015744,1758965450825,-480.0,0.00036164,9]
[388015745,1758965450835,-480.0,0.00036164,9]
[388015746,1758965450846,-480.0,0.00036164,9]
[388015747,1758965450855,-480.0,0.00036164,9]
[388015748,1758965450865,-1543.55,0.00036164,9]
[388015749,1758965450875,-483.98303512,0.00036164,9]
[388015750,1758965450884,-480.0,0.00036164,9]
[388015751,1758965450894,-671.533334,0.00036164,30]
[388015752,1758965450907,-480.0,0.00036164,9]
[388015753,1758965450921,-671.533334,0.00036164,30]
[388015754,1758965450930,-3123.63,0.00036164,9]
[388015755,1758965450940,-671.533334,0.00036164,30]
[388015756,1758965450949,-480.0,0.00036164,9]
[388015757,1758965450959,-671.533334,0.00036164,30]
[388015758,1758965450968,-231.550528,0.00036164,30]
[388015759,1758965450978,-11258.56,0.00036164,9]
[388015760,1758965450987,-480.0,0.00036164,9]
[388015761,1758965450997,-480.0,0.00036164,9]
[388015762,1758965451007,-921.039249,0.00036164,30]
[388015763,1758965451018,-231.550528,0.00036164,30]
[388015764,1758965451027,-480.0,0.00036164,9]
[388015765,1758965451037,-712.46,0.00036164,9]
[388015766,1758965451047,-921.039249,0.00036164,30]
[388015767,1758965451057,-231.550528,0.00036164,30]
[388015768,1758965451067,-732.34,0.00036164,9]
[388015769,1758965451076,-231.550528,0.00036164,30]
[388015770,1758965451086,-921.039249,0.00036164,30]
[388015771,1758965451095,-568.64,0.00036164,9]
[388015772,1758965451104,-2108.14,0.00036164,9]
[388015773,1758965451114,-480.0,0.00036164,9]
[388015774,1758965451125,-265.65988,0.00036164,30]
[388015775,1758965451134,-921.039249,0.00036164,30]
[388015776,1758965451143,-6087.94,0.00036164,9]
[388015777,1758965451153,-265.65988,0.00036164,30]
[388015778,1758965451162,-193.624874,0.00036164,30]
[388015779,1758965451171,-265.65988,0.00036164,30]
[388015780,1758965451181,-1746.09,0.00036164,9]
[388015781,1758965451190,-193.624874,0.00036164,30]
[388015782,1758965451200,-265.65988,0.00036164,30]
[388015783,1758965451209,-8187.01,0.00036164,9]
[388015784,1758965451218,-193.624874,0.00036164,30]
[388015785,1758965451228,-151.0,0.00036164,30]
[388015786,1758965451237,-193.624874,0.00036164,30]
[388015787,1758965451246,-2297.1,0.00036164,9]
[388015788,1758965451256,-504.95591802,0.00036164,9]
[388015789,1758965451265,-151.0,0.00036164,30]
[388015790,1758965451274,-151.0,0.00036164,30]
[388015791,1758965451283,-151.0,0.00036164,30]
[388015792,1758965451292,-154.109286,0.00036164,30]
[388015793,1758965451301,-480.0,0.00036164,9]
[388015794,1758965451310,-621.54,0.00036164,9]
[388015795,1758965451318,-151.0,0.00036164,30]
[388015796,1758965451327,-2086.48,0.00036164,9]
[388015797,1758965451337,-151.0,0.00036164,30]
[388015798,1758965451346,-151.0,0.00036164,30]
[388015799,1758965451355,-151.0,0.00036164,30]
[388015800,1758965451365,-602.0,0.00036164,9]
[388015801,1758965451374,-683.86,0.00036164,9]
[388015802,1758965451383,-488.73367275,0.00036164,9]
[388015803,1758965451392,-151.0,0.00036164,30]
[388015804,1758965451402,-5953.82,0.00036164,9]
[388015805,1758965451411,-151.0,0.00036164,30]
[388015806,1758965451421,-151.0,0.00036164,30]
[388015807,1758965451430,-5300.22,0.00036164,9]
[388015808,1758965451440,-2958.79,0.00036164,9]
[388015809,1758965451450,-480.0,0.00036164,9]
[388015810,1758965451459,-151.0,0.00036164,30]
[388015811,1758965451468,-151.0,0.00036164,14]
[388015812,1758965451478,-342.31533091,0.00036164,9]
[388015813,1758965451487,-480.0,0.00036164,9]
[388015814,1758965451497,-1432.8,0.00036164,9]
[388015815,1758965451506,-1182.75,0.00036164,9]
[388015816,1758965451516,-1660.81,0.00036164,9]
[388015817,1758965451525,-444.001298,0.00036164,30]
[388015818,1758965451533,-3277.19,0.00036164,9]
[388015819,1758965451543,-198.333755,0.00036164,7]